bitfinex/quotes_SOLUSD_20250903
["timestamp","ask_amount","ask_price","bid_price","bid_amount"]
[1756928444861,0.06,209.82,209.81,23.75993589]
[1756928445269,0.06,209.82,209.81,60.31993589]
[1756928445763,0.06,209.82,209.81,23.75993589]
[1756928446069,0.06,209.82,209.81,60.29993589]
[1756928449660,0.06,209.82,209.81,58.61183264]
[1756928450668,0.06,209.82,209.81,18.36181106]
[1756928450849,0.06,209.82,209.81,13.59559401]
[1756928452278,0.74,209.82,209.81,13.59559401]
[1756928453685,0.06,209.82,209.81,13.59559401]
[1756928454373,3.74002158,209.82,209.81,13.59559401]
[1756928462884,0.74,209.82,209.81,13.59559401]
[1756928465971,0.06,209.82,209.81,13.59559401]
[1756928466768,0.74,209.82,209.81,13.59559401]
[1756928471602,0.06,209.82,209.81,13.59559401]
[1756928473604,0.06,209.82,209.81,14.26559401]
[1756928473789,0.06,209.82,209.81,19.03181106]
[1756928474190,0.06,209.82,209.81,22.03183264]
[1756928474697,0.06,209.82,209.81,58.57183264]
[1756928477600,0.06,209.82,209.81,55.57181106]
[1756928477791,0.06,209.82,209.81,58.57183264]
[1756928483500,0.06,209.82,209.81,22.03183264]
[1756928483714,0.74,209.82,209.81,13.59559401]
[1756928484009,3.95267264,209.82,209.81,13.59559401]
[1756928485988,6.95269422,209.82,209.81,13.59559401]
[1756928487106,11.71868411,209.82,209.81,13.59559401]
[1756928489405,8.71866253,209.82,209.81,13.59559401]
[1756928489604,3.95267264,209.82,209.81,13.59559401]
[1756928493520,0.74,209.82,209.81,13.59559401]
[1756928493696,3.74002158,209.82,209.81,13.59559401]
[1756928495009,3.06002158,209.82,209.81,13.59559401]
[1756928495415,0.06,209.82,209.81,13.59559401]
[1756928498313,0.06,209.82,209.81,19.03181106]
[1756928498529,0.06,209.82,209.81,58.57183264]
[1756928507554,0.06,209.82,209.81,58.55183264]
[1756928509536,0.06,209.82,209.81,60.23942163]
[1756928510415,0.06,209.82,209.81,61.47923089]
[1756928512629,0.06,209.82,209.81,59.56942163]
[1756928513444,0.06,209.82,209.81,60.22942163]
[1756928513739,0.06,209.82,209.81,59.56942163]
[1756928513941,0.06,209.82,209.81,23.04942163]
[1756928514142,0.06,209.82,209.81,59.56942163]
[1756928516932,0.06,209.82,209.81,60.22942163]
[1756928517239,0.06,209.82,209.81,62.13923089]
[1756928518541,0.06,209.82,209.81,61.47923089]
[1756928519846,0.06,209.82,209.81,59.56942163]
[1756928520142,0.06,209.82,209.81,54.88181106]
[1756928520326,0.06,209.82,209.81,59.56942163]
[1756928520728,0.06,209.82,209.81,60.22942163]
[1756928522532,0.06,209.82,209.81,18.36181106]
[1756928522736,0.06,209.82,209.81,59.56942163]
[1756928524545,0.06,209.82,209.81,60.22942163]
[1756928524740,0.06,209.82,209.81,62.13923088]
[1756928527153,0.06,209.82,209.81,57.45162031]
[1756928527343,0.06,209.82,209.81,62.13923088]
[1756928528654,0.06,209.82,209.81,25.61923088]
[1756928528869,0.06,209.82,209.81,62.13923088]
[1756928530668,0.06,209.82,209.81,57.45162031]
[1756928530855,0.06,209.82,209.81,62.13923088]
[1756928532558,0.06,209.82,209.81,57.45162031]
[1756928532744,0.06,209.82,209.81,62.13923088]
[1756928532949,0.06,209.82,209.81,25.61923088]
[1756928533140,5.45761057,209.82,209.81,15.50540326]
[1756928533472,5.45761057,209.82,209.79,0.03]
[1756928533473,10.57974382,209.82,209.8,29.56]
[1756928533653,1.97035652,209.82,209.81,13.59559401]
[1756928533850,9.86969684,209.82,209.81,13.59559401]
[1756928534357,10.57969684,209.82,209.81,13.59559401]
[1756928534660,10.57969684,209.82,209.8,36.52]
[1756928534854,1.97035652,209.82,209.81,13.59559401]
[1756928535163,5.1820618,209.82,209.81,13.59559401]
[1756928535362,5.8920618,209.82,209.79,0.03]
[1756928535663,2.68035652,209.82,209.81,13.59559401]
[1756928535963,10.57974332,209.82,209.81,13.59559401]
[1756928536455,0.28432314,209.81,209.79,0.03]
[1756928536656,12.66583103,209.8,209.79,0.03]
[1756928537169,26.04166206,209.8,209.79,0.03]
[1756928537348,26.3259852,209.8,209.79,0.03]
[1756928544641,62.8659852,209.8,209.79,0.03]
[1756928546663,62.8659852,209.8,209.79,13.62559401]
[1756928546664,12.66583103,209.8,209.79,13.62559401]
[1756928546844,0.06,209.82,209.79,13.62559401]
[1756928547045,4.68761057,209.81,209.79,14.28559401]
[1756928547345,4.68761057,209.81,209.79,0.03]
[1756928550542,4.68761057,209.81,209.79,0.69]
[1756928551475,4.68761057,209.81,209.79,0.03]
[1756928552974,2.68044777,209.82,209.79,0.03]
[1756928553156,4.68761057,209.81,209.79,0.03]
[1756928553345,4.74761057,209.81,209.79,0.03]
[1756928554556,0.06,209.81,209.79,14.28559401]
[1756928555278,0.06,209.81,209.79,14.57169401]
[1756928555576,0.06,209.81,209.79,19.33819033]
[1756928559758,0.06,209.81,209.79,18.67819033]
[1756928559956,0.06,209.81,209.8,14.25559401]
[1756928560375,0.06,209.81,209.8,18.28320458]
[1756928560571,0.06,209.81,209.8,18.94320458]
[1756928560771,0.06,209.81,209.8,55.48320458]
[1756928561578,0.06,209.81,209.8,60.24964881]
[1756928561782,0.06,209.81,209.8,55.56203824]
[1756928562364,0.06,209.81,209.8,55.54203824]
[1756928562559,0.06,209.81,209.8,19.02203824]
[1756928563256,0.06,209.81,209.8,55.54203824]
[1756928564282,0.06,209.81,209.8,19.02203824]
[1756928564487,0.06,209.81,209.8,55.54203824]
[1756928569760,0.06,209.81,209.8,60.22964881]
[1756928571474,0.06,209.81,209.8,58.54284564]
[1756928573174,0.06,209.81,209.8,55.54203824]
[1756928573372,0.06,209.81,209.8,57.88284564]
[1756928579376,0.06,209.81,209.8,59.17481894]
[1756928580088,0.06,209.81,209.8,22.65481894]
[1756928580287,0.06,209.81,209.8,59.17481894]
[1756928581095,1e-08,209.81,209.8,59.17481894]
[1756928581297,0.06,209.84,209.81,13.59559401]
[1756928581608,0.06,209.84,209.83,16.59640141]
[1756928581996,0.06,209.84,209.83,17.31640141]
[1756928583506,0.06,209.85,209.83,22.08216417]
[1756928583714,0.06,209.86,209.85,13.59559401]
[1756928583902,1e-08,209.86,209.85,16.59640141]
[1756928584210,1e-08,209.89,209.88,13.59559401]
[1756928584411,1e-08,209.89,209.88,50.68734929]
[1756928584598,1e-08,209.89,209.88,54.40815669]
[1756928585201,1e-08,209.89,209.88,62.17359149]
[1756928586410,1e-08,209.89,209.88,71.17601369]
[1756928588495,1e-08,209.89,209.88,59.17278409]
[1756928589604,1e-08,209.89,209.88,59.45888409]
[1756928590504,1e-08,209.89,209.88,138.05888409]
[1756928590694,1e-08,209.89,209.88,137.48712881]
[1756928594412,1e-08,209.89,209.88,139.39593557]
[1756928596222,1e-08,209.89,209.88,151.39916517]
[1756928600507,1e-08,209.89,209.88,150.67916517]
[1756928600901,1e-08,209.89,209.88,151.35916517]
[1756928602423,1e-08,209.89,209.88,114.83916517]
[1756928602608,0.68000001,209.89,209.88,135.65512817]
[1756928602809,0.68000001,209.89,209.88,138.65593557]
[1756928603899,1e-08,209.89,209.88,138.65593557]
[1756928605506,1e-08,209.89,209.88,102.15593557]
[1756928605706,1e-08,209.89,209.88,138.65593557]
[1756928606626,1e-08,209.89,209.88,138.68593557]
[1756928607423,0.68000001,209.89,209.88,136.77712881]
[1756928607718,0.68000001,209.89,209.88,100.27712881]
[1756928607922,0.68000001,209.89,209.88,136.77712881]
[1756928608431,0.68000001,209.89,209.88,58.17712881]
[1756928608604,0.68000001,209.89,209.88,58.74888409]
[1756928608799,0.68000001,209.89,209.88,38.74888409]
[1756928610126,0.68000001,209.89,209.88,43.51351149]
[1756928610816,0.68000001,209.89,209.88,56.53735022]
[1756928611124,0.68000001,209.89,209.88,57.86102881]
[1756928613332,0.68000001,209.89,209.88,21.36102881]
[1756928613513,0.68000001,209.89,209.88,57.86102881]
[1756928615011,0.68000001,209.89,209.88,21.36102881]
[1756928615228,0.68000001,209.89,209.88,57.86102881]
[1756928615425,0.68000001,209.89,209.88,54.86022141]
[1756928617038,0.68000001,209.89,209.88,18.36022141]
[1756928617239,0.68000001,209.89,209.88,54.86022141]
[1756928621355,0.68000001,209.89,209.88,13.59559401]
[1756928621561,3.68080741,209.89,209.88,13.59559401]
[1756928621845,3.68080741,209.89,209.88,36.5]
[1756928623843,3.68080741,209.89,209.88,36.53]
[1756928624345,6.89015039,209.89,209.88,36.53]
[1756928625529,6.89015039,209.89,209.88,0.03]
[1756928626342,11.65455079,209.89,209.88,0.03]
[1756928628147,6.89015039,209.89,209.88,0.03]
[1756928631456,8.57685636,209.89,209.88,0.03]
[1756928631855,0.68000001,209.89,209.88,50.12559401]
[1756928632148,5.36751338,209.89,209.88,50.12559401]
[1756928641751,1e-08,209.89,209.88,13.62559401]
[1756928641956,0.67000001,209.89,209.88,50.12559401]
[1756928642138,1e-08,209.89,209.88,50.12559401]
[1756928642462,4.68751338,209.89,209.88,50.12559401]
[1756928642864,5.35751338,209.89,209.88,50.12559401]
[1756928645661,4.68751338,209.89,209.88,50.12559401]
[1756928646253,1e-08,209.89,209.88,54.89022141]
[1756928649052,0.67000001,209.89,209.88,54.89022141]
[1756928649248,1e-08,209.89,209.88,54.89022141]
[1756928650885,5.35751338,209.89,209.88,13.62559401]
[1756928651095,5.35751338,209.89,209.88,50.12559401]
[1756928651282,8.56786816,209.89,209.88,50.12559401]
[1756928653365,8.56786816,209.89,209.88,13.62559401]
[1756928653566,8.56786816,209.89,209.88,0.03]
[1756928659588,13.6165917,209.89,209.88,0.03]
[1756928659773,18.4121585,209.89,209.88,0.03]
[1756928659974,13.6477581,209.89,209.88,0.03]
[1756928660388,8.96024473,209.89,209.88,0.03]
[1756928660589,13.6477581,209.89,209.88,0.03]
[1756928669997,8.00592159,209.89,209.88,0.03]
[1756928670189,3.21035479,209.89,209.88,0.69]
[1756928670388,3.21035479,209.89,209.88,14.28559401]
[1756928671200,3.21035479,209.89,209.88,13.62559401]
[1756928671499,7.89786816,209.89,209.88,13.62559401]
[1756928673008,3.21035479,209.89,209.88,13.62559401]
[1756928673311,3.21035479,209.89,209.88,19.05022141]
[1756928675905,1e-08,209.89,209.88,19.05022141]
[1756928676121,1e-08,209.89,209.88,55.55022141]
[1756928676413,3.21421878,209.89,209.88,55.55022141]
[1756928679797,3.21421878,209.89,209.88,54.89022141]
[1756928681311,3.21421878,209.89,209.88,13.62559401]
[1756928681312,8.61173215,209.89,209.88,13.62559401]
[1756928681712,8.61173215,209.89,209.88,0.03]
[1756928682106,10.52154141,209.89,209.88,0.03]
[1756928682610,10.80586455,209.89,209.88,0.03]
[1756928683621,15.57026495,209.89,209.88,0.03]
[1756928691618,13.88340592,209.89,209.88,0.03]
[1756928694319,10.88275158,209.89,209.88,0.03]
[1756928694631,13.88340592,209.89,209.88,0.03]
[1756928697343,25.88602328,209.89,209.88,0.03]
[1756928698022,13.88340592,209.89,209.88,0.03]
[1756928699020,13.88077071,209.89,209.88,0.03]
[1756928699637,10.88011637,209.89,209.88,0.03]
[1756928699840,34.12204717,209.89,209.88,0.03]
[1756928700143,31.40571597,209.89,209.88,0.03]
[1756928700315,3.21158357,209.89,209.88,14.32559401]
[1756928701115,11.98096145,209.89,209.88,0.03]
[1756928701440,15.99544091,209.89,209.88,0.03]
[1756928701621,17.90552376,209.89,209.88,0.03]
[1756928702319,14.90486942,209.89,209.88,0.03]
[1756928702526,17.90552376,209.89,209.88,0.03]
[1756928703215,5.12166642,209.89,209.88,0.73]
[1756928703611,6.21223791,209.89,209.88,0.03]
[1756928703936,7.21656105,209.89,209.88,0.03]
[1756928704316,48.48096145,209.89,209.88,0.03]
[1756928704517,55.49609525,209.89,209.88,0.03]
[1756928705027,51.48161579,209.89,209.88,0.03]
[1756928705531,55.49724871,209.89,209.88,0.03]
[1756928705742,55.49715001,209.89,209.88,0.03]
[1756928706034,26.0,209.86,209.85,0.03]
[1756928706243,32.2122379,209.86,209.85,0.03]
[1756928706541,32.9322379,209.86,209.85,0.03]
[1756928707031,3.21158356,209.86,209.85,0.73]
[1756928707341,3.00065434,209.88,209.85,14.32559401]
[1756928707528,6.21401764,209.87,209.86,0.7]
[1756928708415,3.2133633,209.87,209.86,0.7]
[1756928708613,6.21401764,209.87,209.86,0.7]
[1756928711118,1e-08,209.89,209.87,13.59559401]
[1756928711638,1e-08,209.89,209.88,14.29559401]
[1756928712920,1e-08,209.89,209.88,19.06022141]
[1756928713321,1e-08,209.89,209.88,22.63263103]
[1756928713522,1e-08,209.89,209.88,24.54180221]
[1756928714530,1e-08,209.89,209.88,57.54939259]
[1756928715743,1e-08,209.89,209.88,60.55004693]
[1756928720047,1e-08,209.89,209.88,23.97004693]
[1756928720264,1e-08,209.89,209.88,60.53004693]
[1756928722342,1e-08,209.89,209.88,23.97004693]
[1756928722544,1e-08,209.89,209.88,60.51004693]
[1756928723820,1e-08,209.89,209.88,60.54004693]
[1756928725844,1e-08,209.89,209.88,15.53476519]
[1756928726029,0.68000001,209.89,209.88,52.07476519]
[1756928726438,1e-08,209.89,209.88,54.93022141]
[1756928730947,1e-08,209.89,209.88,55.60022141]
[1756928731252,1e-08,209.89,209.88,54.93022141]
[1756928731938,1e-08,209.89,209.88,59.17263103]
[1756928732650,1e-08,209.89,209.88,61.08161998]
[1756928734736,0.06,209.92,209.91,39.59559401]
[1756928735051,0.06,209.93,209.92,13.59559401]
[1756928735226,0.06,209.93,209.92,17.26624835]
[1756928735647,0.06,209.93,209.92,53.82624835]
[1756928736350,0.06,209.93,209.92,58.58996786]
[1756928736548,0.06,209.93,209.92,60.49859246]
[1756928737148,0.06,209.93,209.92,23.93859246]
[1756928737345,0.06,209.93,209.92,60.49859246]
[1756928741245,0.06,209.93,209.92,23.93859246]
[1756928741443,0.06,209.93,209.92,60.47859246]
[1756928742275,0.06,209.96,209.92,60.47859246]
[1756928742446,0.06,209.96,209.93,22.63136005]
[1756928742846,0.06,209.96,209.93,24.53989358]
[1756928750261,0.06,209.96,209.93,22.63136005]
[1756928750469,1e-08,209.94,209.93,22.63136005]
[1756928751179,0.06,209.98,209.97,16.59624835]
[1756928751342,0.06,209.98,209.97,53.11624835]
[1756928751661,1e-08,209.98,209.97,53.81624835]
[1756928752662,1e-08,209.98,209.97,58.57883348]
[1756928753568,1e-08,209.98,209.97,60.25715461]
[1756928755568,1e-08,209.98,209.97,59.55715461]
[1756928756071,1e-08,209.98,209.97,60.25715461]
[1756928758771,0.2,210.0,209.99,39.59559401]
[1756928758975,0.06,210.02,210.0,13.59559401]
[1756928759168,0.06,210.02,210.01,54.77456948]
[1756928761161,0.06,210.02,210.01,59.53624749]
[1756928763175,0.66,210.04,210.02,13.59559401]
[1756928763349,0.66,210.04,210.02,18.27456948]
[1756928763554,0.72,210.03,210.02,18.27456948]
[1756928764680,0.72,210.03,210.02,54.75456948]
[1756928765183,0.72,210.03,210.02,59.51602077]
[1756928766773,0.06,210.03,210.02,59.51602077]
[1756928766974,0.72,210.03,210.02,59.51602077]
[1756928768468,0.72,210.03,210.02,59.49602077]
[1756928770663,0.06,210.03,210.02,59.49602077]
[1756928771377,0.72,210.03,210.02,59.49602077]
[1756928772372,0.72,210.03,210.02,23.03602077]
[1756928772570,0.72,210.03,210.02,18.3570453]
[1756928772787,0.72,210.03,210.02,54.8170453]
[1756928774885,0.06,210.03,210.02,59.49602077]
[1756928781364,0.06,210.03,210.02,23.03602077]
[1756928781570,0.06,210.03,210.02,59.49602077]
[1756928786197,1e-08,210.06,210.05,39.87991715]
[1756928786496,1e-08,210.08,210.07,0.28432314]
[1756928786674,1e-08,210.08,210.07,55.01889262]
[1756928786997,1e-08,210.08,210.07,56.29013077]
[1756928787189,1e-08,210.08,210.07,58.19711749]
[1756928788189,1e-08,210.08,210.07,58.27846]
[1756928788389,1e-08,210.08,210.07,62.95743547]
[1756928788882,1e-08,210.08,210.07,82.95743547]
[1756928789870,0.2,210.14,210.11,39.59559401]
[1756928790070,0.2,210.14,210.13,18.27456948]
[1756928790274,0.2,210.14,210.13,23.03352821]
[1756928796805,1e-08,210.14,210.13,23.73352821]
[1756928797705,1e-08,210.14,210.13,23.03352821]
[1756928798013,1e-08,210.14,210.13,23.73352821]
[1756928801916,1e-08,210.14,210.13,102.61785135]
[1756928802503,1e-08,210.14,210.13,107.29682682]
[1756928804314,1e-08,210.14,210.13,147.47995717]
[1756928808217,1e-08,210.14,210.13,111.03995717]
[1756928808429,1e-08,210.14,210.13,147.47995717]
[1756928812418,1e-08,210.17,210.16,39.59559401]
[1756928812620,1e-08,210.17,210.16,76.03559401]
[1756928813125,1e-08,210.17,210.16,80.71456948]
[1756928813626,0.71,210.21,210.17,13.59559401]
[1756928813806,0.71,210.2,210.19,16.58488637]
[1756928814206,0.2,210.24,210.2,13.59559401]
[1756928814407,0.2,210.24,210.22,13.59559401]
[1756928814627,0.2,210.24,210.23,50.01559401]
[1756928815631,0.2,210.24,210.23,54.77228905]
[1756928816306,0.82,210.24,210.23,54.77228905]
[1756928817328,0.2,210.24,210.23,57.76158141]
[1756928818106,0.2,210.24,210.23,60.75087377]
[1756928819234,0.2,210.24,210.23,57.76158141]
[1756928820425,0.82,210.24,210.23,57.76158141]
[1756928820728,0.2,210.24,210.23,18.35228905]
[1756928820934,0.2,210.24,210.23,54.77228905]
[1756928824938,0.2,210.24,210.23,57.76158141]
[1756928826325,0.2,210.24,210.23,60.75087377]
[1756928826524,0.2,210.24,210.23,57.76158141]
[1756928830539,0.2,210.24,210.23,21.34158141]
[1756928830753,0.2,210.24,210.23,57.76158141]
[1756928832841,0.2,210.24,210.23,58.44158141]
[1756928833441,0.2,210.24,210.23,57.76158141]
[1756928835129,0.2,210.24,210.23,58.44158141]
[1756928843556,0.2,210.24,210.23,61.43087377]
[1756928843932,0.62,210.3,210.24,13.59559401]
[1756928844243,2.98929236,210.31,210.26,13.59559401]
[1756928844434,2.98929236,210.31,210.27,36.42]
[1756928844634,0.62,210.3,210.27,36.42]
[1756928844950,0.62,210.3,210.29,13.59559401]
[1756928845153,0.62,210.3,210.29,50.01559401]
[1756928845349,26.0,210.34,210.29,50.01559401]
[1756928845554,3.60929236,210.31,210.29,50.01559401]
[1756928846538,3.60929236,210.31,210.3,50.01559401]
[1756928847139,3.60929236,210.31,210.3,54.77070575]
[1756928847354,26.62,210.34,210.31,13.59559401]
[1756928847540,0.62,210.33,210.32,36.42]
[1756928848454,0.62,210.33,210.32,41.17465956]
[1756928848661,3.60929236,210.33,210.32,41.17465956]
[1756928849654,3.66929236,210.33,210.32,41.17465956]
[1756928850650,3.66929236,210.33,210.32,36.42]
[1756928851264,3.04929236,210.33,210.32,36.42]
[1756928854272,3.04929236,210.33,210.31,18.35043712]
[1756928854571,3.04929236,210.33,210.32,36.4]
[1756928854778,0.06,210.33,210.32,54.75025357]
[1756928855653,0.06,210.33,210.32,55.43025357]
[1756928857970,0.06,210.33,210.32,58.41954593]
[1756928858865,0.06,210.33,210.32,55.43025357]
[1756928859173,0.06,210.33,210.32,58.41954593]
[1756928861174,0.06,210.33,210.32,61.40883829]
[1756928863292,0.06,210.36,210.35,13.59559401]
[1756928863586,0.06,210.36,210.35,49.99559401]
[1756928863751,0.06,210.36,210.35,50.65559401]
[1756928865058,0.06,210.36,210.35,55.40957546]
[1756928865978,0.06,210.36,210.35,58.39886782]
[1756928867557,0.06,210.36,210.35,55.40957546]
[1756928868565,0.06,210.36,210.35,58.39886782]
[1756928868881,0.06,210.36,210.35,55.40957546]
[1756928869061,0.06,210.36,210.35,58.39886782]
[1756928869262,0.06,210.36,210.35,55.40957546]
[1756928869576,0.06,210.36,210.35,58.68446782]
[1756928870881,0.06,210.36,210.35,22.28446782]
[1756928871068,0.06,210.36,210.35,58.68446782]
[1756928873482,1e-08,210.36,210.35,58.68446782]
[1756928873660,1e-08,210.36,210.35,58.96879096]
[1756928875526,1e-08,210.36,210.35,60.64122427]
[1756928875897,1e-08,210.36,210.35,18.63517546]
[1756928876215,1e-08,210.36,210.35,55.69517546]
[1756928876516,1e-08,210.36,210.35,23.95690113]
[1756928876699,1e-08,210.36,210.35,60.37690113]
[1756928876897,1e-08,210.36,210.35,18.63517546]
[1756928877106,1e-08,210.36,210.35,55.05517546]
[1756928877513,1e-08,210.36,210.35,18.63517546]
[1756928877914,1e-08,210.36,210.35,55.05517546]
[1756928878637,4.66172568,210.36,210.35,13.88119401]
[1756928878808,5.28172568,210.36,210.35,50.30119401]
[1756928878996,5.28172568,210.36,210.35,36.7056]
[1756928879419,5.28172568,210.36,210.35,36.7256]
[1756928879718,5.28172568,210.36,210.35,50.32119401]
[1756928880429,14.69720681,210.36,210.35,0.2856]
[1756928880604,26.0,210.33,210.3,4.78]
[1756928880803,0.62,210.32,210.31,4.78]
[1756928881027,5.28172567,210.32,210.3,29.26]
[1756928881225,4.66172567,210.31,210.3,42.85559401]
[1756928881427,5.28172567,210.31,210.3,42.85559401]
[1756928883030,4.66172567,210.31,210.3,42.85559401]
[1756928883241,4.66172568,210.36,210.31,13.59559401]
[1756928883539,26.0,210.33,210.32,50.09559401]
[1756928883707,26.62,210.33,210.32,50.09559401]
[1756928884521,5.28172567,210.33,210.32,50.09559401]
[1756928885835,5.28172567,210.33,210.32,50.07559401]
[1756928886337,10.03615917,210.33,210.26,13.59559401]
[1756928886545,0.62,210.32,210.28,13.59559401]
[1756928886728,4.66172567,210.29,210.28,13.59559401]
[1756928887038,5.28172567,210.29,210.28,50.07559401]
[1756928887246,5.28172567,210.29,210.28,36.48]
[1756928887423,5.28172567,210.29,210.28,50.07559401]
[1756928888015,4.66172567,210.29,210.28,50.07559401]
[1756928890747,36.0371791,210.29,210.27,0.03]
[1756928890929,4.94604881,210.28,210.27,0.03]
[1756928891340,5.56604881,210.28,210.27,0.03]
[1756928891540,19.86504073,210.28,210.24,0.03]
[1756928891739,9.32345134,210.25,210.24,0.03]
[1756928892154,26.0,210.22,210.21,0.03]
[1756928892321,30.66172567,210.22,210.21,0.03]
[1756928892528,26.0,210.24,210.21,0.03]
[1756928892832,5.28172567,210.22,210.21,0.03]
[1756928893350,4.66172567,210.22,210.21,0.03]
[1756928895729,0.62,210.23,210.21,0.03]
[1756928895934,4.66172567,210.22,210.21,0.03]
[1756928896151,0.62,210.23,210.21,0.03]
[1756928896351,4.66172567,210.22,210.21,0.03]
[1756928897467,5.28172567,210.22,210.21,0.03]
[1756928898053,4.66172567,210.22,210.21,0.03]
[1756928899155,10.03864699,210.22,210.21,0.03]
[1756928899947,11.94554281,210.22,210.21,0.03]
[1756928900137,11.32554281,210.22,210.21,0.03]
[1756928900456,11.94554281,210.22,210.21,0.03]
[1756928905644,11.32554281,210.22,210.21,0.03]
[1756928906948,12.22986595,210.22,210.21,0.03]
[1756928907166,0.28432314,210.21,210.19,0.03]
[1756928907362,30.66172567,210.2,210.19,0.03]
[1756928907568,36.03909959,210.2,210.19,0.03]
[1756928907859,37.94645004,210.2,210.19,0.03]
[1756928909158,74.46645004,210.2,210.19,0.03]
[1756928910150,32.66472437,210.2,210.19,0.03]
[1756928910458,6.85339926,210.2,210.19,0.03]
[1756928911859,32.85339926,210.2,210.19,0.03]
[1756928913640,1.90735045,210.2,210.19,0.69]
[1756928913962,4.66172567,210.2,210.19,0.69]
[1756928915363,9.41909959,210.2,210.19,0.03]
[1756928915568,9.70342273,210.2,210.19,0.03]
[1756928915771,11.6105913,210.2,210.19,0.03]
[1756928920476,12.2305913,210.2,210.19,0.03]
[1756928920969,12.2305913,210.2,210.18,0.03]
[1756928920970,0.28432314,210.19,210.18,0.03]
[1756928921145,4.66172567,210.18,210.17,0.03]
[1756928921467,5.28172567,210.18,210.17,0.03]
[1756928921671,7.18925804,210.18,210.17,0.03]
[1756928922048,6.56925804,210.18,210.17,0.03]
[1756928922470,11.32708466,210.18,210.17,0.03]
[1756928924379,1.90753237,210.18,210.17,0.03]
[1756928924560,6.56925804,210.18,210.17,0.69]
[1756928924754,6.56925804,210.18,210.17,0.03]
[1756928925371,6.85358118,210.18,210.17,0.69]
[1756928925570,1.90753237,210.18,210.17,0.69]
[1756928925853,4.66172567,210.18,210.17,0.69]
[1756928933062,4.66172567,210.18,210.17,19.04364701]
[1756928934878,4.66172567,210.18,210.17,14.28559401]
[1756928935482,2.99129299,210.18,210.17,14.28559401]
[1756928937076,2.99129299,210.18,210.17,0.69]
[1756928937870,26.06,210.2,210.17,5.448053]
[1756928938077,26.06,210.2,210.18,14.25559401]
[1756928938078,0.06,210.2,210.18,14.25559401]
[1756928938270,3.05129299,210.2,210.19,14.25559401]
[1756928938786,0.06,210.2,210.19,19.01319427]
[1756928939373,3.05129299,210.2,210.19,19.01319427]
[1756928939581,0.06,210.2,210.19,19.01319427]
[1756928939780,3.05129299,210.2,210.19,19.01319427]
[1756928940501,0.06,210.2,210.19,19.01319427]
[1756928940673,3.05129299,210.2,210.19,19.01319427]
[1756928940867,3.05129299,210.2,210.19,14.25559401]
[1756928949692,0.06,210.2,210.19,14.25559401]
[1756928949895,3.05129299,210.2,210.19,14.25559401]
[1756928951096,0.06,210.2,210.19,19.01319427]
[1756928951395,3.05129299,210.2,210.19,19.01319427]
[1756928951796,0.06,210.2,210.19,19.01319427]
[1756928960895,1e-08,210.2,210.19,22.00448726]
[1756928962981,1e-08,210.2,210.19,58.48448726]
[1756928963400,1e-08,210.2,210.19,55.49319427]
[1756928965187,1e-08,210.2,210.19,58.48448726]
[1756928970401,1e-08,210.2,210.19,55.49319427]
[1756928970603,1e-08,210.2,210.19,55.45319427]
[1756928974611,1e-08,210.2,210.19,18.35319427]
[1756928974814,1e-08,210.2,210.19,54.79319427]
[1756928975817,0.62000001,210.2,210.19,54.79319427]
[1756928976623,1e-08,210.2,210.19,54.79319427]
[1756928979724,1e-08,210.2,210.19,18.35319427]
[1756928979908,1e-08,210.2,210.19,54.79319427]
[1756928981125,1e-08,210.2,210.19,54.82319427]
[1756928981325,1e-08,210.2,210.19,55.50319427]
[1756928982529,1e-08,210.2,210.19,54.82319427]
[1756928983025,1e-08,210.2,210.19,58.50448726]
[1756928983232,1e-08,210.2,210.19,13.62559401]
[1756928983408,3.611293,210.2,210.19,13.62559401]
[1756928983610,29.611293,210.2,210.19,0.03]
[1756928983809,29.89561614,210.2,210.19,0.03]
[1756928985220,34.65299006,210.2,210.19,0.03]
[1756928991445,36.56024957,210.2,210.19,0.03]